{"text_format":"2","workbook":"xlsx","n_sheets":2,"sheets":["Záradék","Új folyadékhűtő telepítése"],"not_rendered":{"charts":0,"images":0,"macros":0,"external_links":0,"defined_names":0,"comments":0,"pivot_tables":0},"unopened":[],"bounds":{"document_bytes":16777216,"sheet_cells":100000,"run_cost":"one","rows_first":2000,"rows_last":500,"rows_between":2000,"halvings":0,"cell_chars":16384,"cell_head_chars":4096},"cells_cut":0,"cells_raw":0,"read":"whole","date_system":"1900"}

{"sheet":"Záradék","index":0,"n_rows":31,"n_cols":4,"rows_kept":31,"cut":false,"hidden":false,"merged":[[12,2,12,3],[16,2,16,3],[17,2,17,3],[18,2,18,3],[19,0,19,3],[30,1,30,2],[0,0,0,3],[1,0,1,3],[2,0,2,3],[3,0,3,3],[4,0,4,3],[5,0,5,3],[24,2,24,3],[25,2,25,3],[26,2,26,3],[8,2,8,3],[9,2,9,3],[10,2,10,3],[11,2,11,3]]}
["SZEGEDI TUDOMÁNYEGYETEM"]
[]
[]
[]
[]
[]
[null,null,"Kelt:"]
[]
["Szegedi Tudományegyetem                ",null,"Készítette:"]
["Műszaki Igazgatóság                    ",null,"Cégnév"]
["Műszaki Üzemeltetési Részleg         ",null,"Székhely"]
["6725 Szeged, Tisza Lajos krt. 107.     ",null,"Kapcsolattartó"]
["                                       ",null,"Elérhetőség"]
["                                       ",null,"                                       "]
["A munka leírása:                       ",null,"                                       "]
["SZTE SZAKK Pathológiai Intézet folyadékhűtőjének komplett cseréje, hidraulikai rendszert érintő szivattyúk cseréjével"]
[]
["                                                                              "]
[]
["Költségvetés főösszesítő"]
[]
["Megnevezés",null,"Anyagköltség","Díjköltség"]
["1. Építmény közvetlen költségei",null,{"$f":"'Új folyadékhűtő telepítése'!G21","v":0},{"$f":"'Új folyadékhűtő telepítése'!H21","v":0}]
["1.1 Közvetlen önköltség összesen",null,{"$f":"ROUND(C23,0)","v":0},{"$f":"ROUND(D23,0)","v":0}]
["2.1 ÁFA vetítési alap",null,{"$f":"ROUND(C24+D24,0)","v":0}]
["2.2 Áfa",0.27,{"$f":"ROUND(C25*B26,0)","v":0}]
["3.  A munka ára",null,{"$f":"ROUND(C25+C26,0)","v":0}]
[]
[]
[]
[null,"Aláírás"]

{"sheet":"Új folyadékhűtő telepítése","index":1,"n_rows":21,"n_cols":8,"rows_kept":21,"cut":false,"hidden":false,"merged":[]}
["Ssz.","Tétel szövege","Menny.","Egység","Anyag egységár","Díj egységre","Anyag összesen","Díj összesen"]
[1,"Gépek, berendezések bontása \n500 kg/db feletti súly esetén\nTrane RTAD 100 folyadékhűtő elektromos kikötése, gépészeti bontása",3205,"kg",0,0,{"$f":"ROUND(C2*E2, 0)","v":0},{"$f":"ROUND(C2*F2, 0)","v":0}]
[2,"Hűtőközeg lefejtése, ártalmatlanítása dokumentálással",66,"kg",0,0,{"$f":"ROUND(C3*E3, 0)","v":0},{"$f":"ROUND(C3*F3, 0)","v":0}]
[3,"Elbontott hűtőkörök kivezetése a Nemzeti Klimavédelmi Hatóság rendszeréből",2,"db",0,0,0,0]
[4,"Bontott folyadékhűtő daruzása",1,"db",0,0,0,0]
[5,"Elbontott folyadékhűtő elszállítása, ártalmatlanítása, dokumentálással",1,"db",0,0,0,0]
[6,"Csővezetékek, szerelvények bontása, horganyzott vagy fekete acélcsövek tartószerkezetről, vagy padlócsatornából lángvágással, deponálással, DN 100 - 150 között ",20,"m",0,0,0,{"$f":"ROUND(C7*F7, 0)","v":0}]
[7,"Acél tartószerkezet bontása, ledaruzása",500,"kg",0,0,0,0]
[8,"Új acél tartószerkezet kialakítása folyadékhűtőhöz, daruzással",700,"kg",0,0,0,0]
[9,"Új folyadékhűtő daruzása",1,"db",0,0,0,0]
[10,"Légtelenítő szerelvények",2,"db",0,0,{"$f":"ROUND(C11*E11, 0)","v":0},{"$f":"ROUND(C11*F11, 0)","v":0}]
[11,"Csőhálózatba építendő elzáró szerelvények",6,"db",0,0,{"$f":"ROUND(C12*E12, 0)","v":0},{"$f":"ROUND(C12*F12, 0)","v":0}]
[12,"Új folyadékhűtőberendezés elhelyezése, GALLETTI VRS344 CS0A Folyadékhűtő (EEV, dupla\nsziv., puffer, kond.szab, elpár.fagyv., RS485, gumi rezg.cs, Victaulic, lágyindító, órakártya, hibakártya, hőm.érz, manométerek) 344 kW, R410A, 3 fázis",1,"db",0,0,0,0]
[13,"Az új folyadékhűtőhöz szükséges szabvány szerinti elektromos kialakítás munkadíja",1,"db",0,0,0,0]
[14,"Hűtési vezeték,\nFekete acélcső szerelése,\nhegesztett kötésekkel, szerelvényekkel, tartószerkezettel, szakaszos nyomáspróbával, felületkezeléssel\nszabadon, horonyba vagy padlócsatornába,\nirányváltozás csőívvel,\ncsőátmérő DN 100 felett",25,"m",0,0,0,0]
[15,"Hidraulikus váltó elhelyezése és bekötése, fali vagy álló tartószerkezettel, hőszigetelve (vagy hőszigetelés nélkül), 100-800 kW teljesítmény között, csatlakozó méret DN 160-ig hidraulikus váltó folyadékhűtő paramétereihez illesztve hőszigeteléssel, Al burkolással",1,"db",0,0,0,0]
[16,"Hűtő- és mélyhűtött, valamint klímatechnikai berendezések szerkezeti elemeinek és csővezetékeinek hőszigetelése\n(ívek, idomok, szerelvények szigetelése és burkolás nélkül),\nszintetikus gumi alapú kaucsuk\ncsőhéjjal\ncsupasz kivitelben,\nragasztással, öntapadó ragasztó szalag lezárással,\nNÁ 108 mm csőátmérő felett\nCsőhéj AF4, falvastagság: 25,0 mm, külső csőátmérő 160 mm",25,"m",0,0,0,0]
[17,"Hűtő- és mélyhűtött, valamint klímatechnikai berendezések szerkezeti elemeinek és csővezetékeinek burkolása Al lemezzel (ívek, idomok, szerelvények burkolása),  NÁ 108 mm csőátmérő felett külső csőátmérő 160 mm",25,"m",0,0,0,0]
[18,"Hűtési vezetékek átmosatása, fagyálló folyadékkal történő feltöltése (etilén glikol 30 tf%)",3,"m3",0,0,0,0]
[19,"GALLETTI LCX 364 CSG0 folyadékhűtő garanciális üzembehelyezése min. 3 év garancia vállalásával",1,"db",0,0,0,0]
[null,"Munkanem összesen:",{"$nulls":4},{"$f":"ROUND(SUM(G2:G20),0)","v":0},{"$f":"ROUND(SUM(H2:H20),0)","v":0}]